bitfinex-derivatives/quotes_BTCF0:USTF0_20251208
["timestamp","ask_amount","ask_price","bid_price","bid_amount"]
[1765157646715,0.05877558,91557.0,91526.0,0.0546243]
[1765157647013,0.05877558,91557.0,91545.0,0.0109227]
[1765157647014,0.18732,91546.0,91545.0,0.0109227]
[1765157647314,0.14527,91558.0,91557.0,0.0109212]
[1765157647612,0.14527,91558.0,91557.0,0.00714605]
[1765157647822,0.14527,91549.0,91548.0,0.01108614]
[1765157648203,0.22434558,91559.0,91558.0,0.0109211]
[1765157648402,0.16557,91559.0,91558.0,0.0109211]
[1765157650909,0.14527,91549.0,91548.0,0.00016384]
[1765157651118,0.14527,91549.0,91548.0,0.01108614]
[1765157651315,0.16557,91559.0,91558.0,0.0109211]
[1765157651713,0.26741,91557.0,91556.0,0.0109212]
[1765157652413,0.26741,91557.0,91556.0,0.0837212]
[1765157652816,0.26741,91557.0,91556.0,0.0109212]
[1765157655819,0.26741,91557.0,91556.0,0.2863912]
[1765157656626,0.26741,91557.0,91556.0,0.0109212]
[1765157657311,0.26741,91549.0,91548.0,0.00016384]
[1765157657511,0.26741,91549.0,91548.0,0.01108614]
[1765157658018,0.26741,91531.0,91530.0,0.0109245]
[1765157658211,0.04422,91533.0,91519.0,0.01105459]
[1765157658212,0.31163,91520.0,91519.0,0.01105459]
[1765157658815,0.26741,91518.0,91517.0,0.0109259]
[1765157662513,0.26741,91509.0,91508.0,0.00016384]
[1765157662821,0.26741,91509.0,91494.0,8.368e-05]
[1765157662822,0.26741,91497.0,91496.0,0.0109285]
[1765157663614,0.26741,91497.0,91496.0,0.2863985]
[1765157663921,0.07104,91497.0,91496.0,0.2863985]
[1765157664313,0.26741,91497.0,91496.0,0.2863985]
[1765157664615,0.26741,91497.0,91487.0,0.00011016]
[1765157664616,0.2783395,91488.0,91487.0,0.00011016]
[1765157664818,0.2783395,91488.0,91442.0,0.04056]
[1765157664819,0.26741,91461.0,91442.0,0.04056]
[1765157665023,0.26840999,91460.0,91459.0,0.0109329]
[1765157665224,0.26741,91460.0,91459.0,0.0109329]
[1765157665927,0.26741,91447.0,91446.0,0.01120789]
[1765157666125,0.26849367,91460.0,91459.0,0.0109329]
[1765157666309,0.26749368,91460.0,91459.0,0.0109329]
[1765157668211,0.31163,91448.0,91447.0,0.0109343]
[1765157668625,0.01101648,91460.0,91459.0,0.0109329]
[1765157668626,0.26849367,91460.0,91459.0,0.0109329]
[1765157668821,0.26749368,91460.0,91459.0,0.0109329]
[1765157669318,0.00108367,91460.0,91449.0,0.010934]
[1765157669520,0.26741,91457.0,91456.0,0.0109332]
[1765157669722,8.368e-05,91460.0,91456.0,0.2864032]
[1765157669927,0.26741,91457.0,91456.0,0.0109332]
[1765157670418,0.26741,91457.0,91456.0,0.0837332]
[1765157670625,8.368e-05,91460.0,91459.0,0.27547]
[1765157670824,0.26749368,91460.0,91459.0,0.0728]
[1765157671224,8.368e-05,91460.0,91459.0,0.0728]
[1765157671421,8.368e-05,91460.0,91459.0,0.60547]
[1765157672015,8.368e-05,91460.0,91459.0,0.27547]
[1765157672218,8.368e-05,91460.0,91459.0,0.68547]
[1765157672724,0.00016394,91469.0,91468.0,0.2864019]
[1765157673028,0.26757394,91469.0,91468.0,0.0109319]
[1765157674523,0.26757394,91469.0,91468.0,0.2864019]
[1765157675325,0.31262999,91490.0,91489.0,0.0109294]
[1765157675526,0.31163,91490.0,91489.0,0.0109294]
[1765157676927,0.31163,91490.0,91484.0,0.0109299]
[1765157676928,0.04521999,91490.0,91484.0,0.0109299]
[1765157677229,0.26741,91485.0,91484.0,0.0109299]
[1765157678526,0.31163,91481.0,91480.0,0.00016394]
[1765157679729,0.26741,91462.0,91461.0,0.0109326]
[1765157680729,0.0109321,91467.0,91450.0,0.25586883]
[1765157680932,0.07104,91451.0,91450.0,0.26680283]
[1765157681235,0.07104,91451.0,91450.0,0.010934]
[1765157681939,0.04422,91468.0,91443.0,0.0109347]
[1765157681940,0.3933,91447.0,91443.0,0.0109347]
[1765157683229,0.3933,91447.0,91438.0,0.0109354]
[1765157683536,0.1363035,91455.0,91421.0,0.27387932]
[1765157683537,0.3933,91422.0,91421.0,0.27387932]
[1765157683724,0.3933,91422.0,91421.0,0.33387932]
[1765157684138,0.3933,91422.0,91421.0,0.06080932]
[1765157684327,0.3933,91422.0,91421.0,0.0109375]
[1765157685327,0.12537,91429.0,91428.0,0.0109366]
[1765157685538,0.51867,91429.0,91428.0,0.0109366]
[1765157686042,0.00016404,91431.0,91430.0,0.39913]
[1765157686845,0.3933,91453.0,91452.0,0.0109337]
[1765157688532,0.00099999,91460.0,91446.0,0.0109344]
[1765157688731,0.3933,91444.0,91443.0,0.00016404]
[1765157689932,0.3933,91422.0,91421.0,0.0109375]
[1765157691843,0.3933,91413.0,91412.0,0.0109385]
[1765157692143,0.3933,91410.0,91409.0,8.124e-05]
[1765157694341,0.3933,91410.0,91409.0,0.21315124]
[1765157694537,0.3933,91410.0,91409.0,8.124e-05]
[1765157699744,0.04326,91411.0,91410.0,0.3803688]
[1765157699949,0.22491,91411.0,91410.0,0.3803688]
[1765157700134,0.4071,91411.0,91410.0,0.0109388]
[1765157700735,0.04326,91411.0,91410.0,0.3803688]
[1765157700938,0.04326,91411.0,91409.0,8.124e-05]
[1765157700939,0.4071,91411.0,91409.0,8.124e-05]
[1765157701134,0.36384,91410.0,91409.0,8.124e-05]
[1765157701745,0.36384,91410.0,91409.0,0.36951124]
[1765157702541,0.0109339,91451.0,91430.0,0.36943]
[1765157702747,0.36384,91448.0,91447.0,0.0109343]
[1765157704148,4e-08,91457.0,91456.0,0.3803633]
[1765157704353,0.36411327,91486.0,91485.0,0.0109298]
[1765157704541,0.36411327,91486.0,91478.0,0.0109306]
[1765157704746,0.36411327,91486.0,91476.0,0.25586883]
[1765157704747,0.36384,91477.0,91476.0,0.25586883]
[1765157705049,0.36411327,91486.0,91485.0,0.0109298]
[1765157707157,0.00027327,91486.0,91485.0,0.36943]
[1765157707840,0.01914,91494.0,91476.0,0.18792204]
[1765157708040,0.01914,91494.0,91484.0,0.187758]
[1765157708249,0.01914,91494.0,91493.0,0.1940489]
[1765157708846,0.01914,91494.0,91493.0,0.3803589]
[1765157709057,0.20079,91494.0,91493.0,0.3803589]
[1765157709246,0.20079,91494.0,91493.0,0.0109289]
[1765157709247,0.38298,91494.0,91493.0,0.0109289]
[1765157709749,0.36384,91494.0,91493.0,0.0109289]
[1765157710458,0.00016404,91495.0,91494.0,0.36943]
[1765157710751,0.36384,91494.0,91476.0,0.00016404]
[1765157710965,0.36384,91488.0,91487.0,0.0109296]
[1765157711855,0.18165,91488.0,91487.0,0.3600096]
[1765157712056,0.34881,91488.0,91487.0,0.0109296]
[1765157714156,0.347,91483.0,91482.0,0.0109301]
[1765157714652,0.347,91479.0,91478.0,0.0109307]
[1765157715054,0.10919999,91490.0,91488.0,0.0109295]
[1765157715055,0.347,91489.0,91488.0,0.0109295]
[1765157715952,0.347,91477.0,91476.0,0.00016404]
[1765157716158,0.347,91477.0,91476.0,4.04e-06]
[1765157716464,0.347,91459.0,91458.0,0.010933]
[1765157716960,0.347,91454.0,91453.0,0.0109336]
[1765157717454,0.347,91445.0,91444.0,0.01109865]
[1765157717850,0.347,91445.0,91444.0,0.24481865]
[1765157718052,0.347,91455.0,91454.0,0.0109335]
[1765157718445,0.00016395,91463.0,91462.0,0.3506126]
[1765157719047,0.34716395,91463.0,91462.0,0.0109326]
[1765157719863,0.347,91454.0,91453.0,0.187758]
[1765157720044,0.347,91447.0,91446.0,0.01120789]
[1765157720367,0.347,91447.0,91446.0,0.18492789]
[1765157720666,0.34799999,91460.0,91459.0,0.0109329]
[1765157721054,0.347,91460.0,91459.0,0.0109329]
[1765157722356,0.00016395,91463.0,91462.0,0.44295]
[1765157722558,0.347,91481.0,91480.0,0.0109303]
[1765157723654,0.00016404,91490.0,91489.0,0.0109294]
[1765157723855,0.00016404,91490.0,91489.0,0.3506094]
[1765157724357,0.00016404,91490.0,91489.0,0.0109294]
[1765157724358,0.34716404,91490.0,91489.0,0.0109294]
[1765157724559,0.347,91485.0,91484.0,0.0109299]
[1765157725359,0.17984,91485.0,91484.0,0.1846499]
[1765157725567,0.45536404,91490.0,91485.0,0.0109298]
[1765157725864,0.347,91472.0,91471.0,0.01109554]
[1765157727358,0.00099999,91480.0,91479.0,0.0109305]
[1765157727559,0.00016404,91490.0,91489.0,0.3506094]
[1765157728173,0.18000404,91490.0,91489.0,0.3506094]
[1765157729064,0.347,91472.0,91471.0,0.01109554]
[1765157729363,0.10936403,91490.0,91481.0,0.0109303]
[1765157729364,0.347,91482.0,91481.0,0.0109303]
[1765157729667,0.347,91482.0,91481.0,0.1846503]
[1765157729864,0.10936403,91490.0,91476.0,0.0109308]
[1765157730167,0.347,91472.0,91471.0,0.00016404]
[1765157731657,0.347,91488.0,91487.0,0.0109296]
[1765157732768,0.00016404,91490.0,91478.0,0.187758]
[1765157732769,0.10836404,91490.0,91479.0,0.0109305]
[1765157732962,0.347,91480.0,91479.0,0.0109305]
[1765157734066,0.347,91472.0,91471.0,0.01109544]
[1765157734370,0.347,91472.0,91471.0,0.00016404]
[1765157736166,0.347,91480.0,91471.0,0.41016404]
[1765157736371,0.34799999,91480.0,91479.0,0.0109305]
[1765157736670,0.347,91480.0,91479.0,0.0109305]
[1765157738671,0.0109299,91485.0,91475.0,0.010931]
[1765157738868,0.4552,91476.0,91475.0,0.010931]
[1765157739963,0.347,91476.0,91475.0,0.184651]
[1765157740364,0.347,91476.0,91475.0,0.010931]
[1765157742069,0.3494,91476.0,91475.0,0.348541]
[1765157742374,0.3494,91476.0,91475.0,0.010931]
[1765157743972,0.3494,91476.0,91475.0,0.190061]
[1765157744163,0.3494,91476.0,91475.0,0.010931]
[1765157744565,0.34888,91472.0,91471.0,0.01109544]
[1765157746173,0.34888,91472.0,91471.0,0.00016404]
[1765157746573,0.34888,91460.0,91459.0,0.1521329]
[1765157747273,0.34888,91460.0,91459.0,0.1412]
[1765157747675,0.34888,91460.0,91459.0,0.1521329]
[1765157748279,0.34888,91460.0,91459.0,0.3312629]
[1765157748981,0.34888,91460.0,91459.0,0.1521329]
[1765157750578,0.36817,91480.0,91479.0,0.0109305]
[1765157751382,0.34888,91493.0,91492.0,0.0109289]
[1765157752687,0.34888,91493.0,91492.0,0.3539489]
[1765157753185,0.34904394,91502.0,91501.0,0.0109279]
[1765157753676,0.34888,91497.0,91496.0,0.0109284]
[1765157754280,0.16956,91488.0,91487.0,0.187758]
[1765157754581,0.00016394,91502.0,91488.0,0.10941]
[1765157754771,0.00016394,91502.0,91492.0,0.187758]
[1765157754971,0.17932,91493.0,91492.0,0.541707]
[1765157755181,0.34904394,91502.0,91501.0,0.0109279]
[1765157757183,0.3564,91494.0,91493.0,0.1916288]
[1765157757778,0.17914,91494.0,91493.0,0.3709288]
[1765157758284,0.00016394,91502.0,91501.0,0.0109279]
[1765157758285,0.35656394,91502.0,91501.0,0.0109279]
[1765157760086,0.3564,91484.0,91483.0,0.00016394]
[1765157760278,0.03152,91500.0,91483.0,0.00016394]
[1765157760580,0.3564,91492.0,91490.0,0.187758]
[1765157760786,0.3564,91492.0,91483.0,0.38016394]
[1765157760787,0.3564,91484.0,91483.0,0.01109404]
[1765157761877,0.3564,91484.0,91483.0,0.00016394]
[1765157763479,0.51356,91501.0,91483.0,0.36016394]
[1765157763675,0.3564,91499.0,91498.0,0.0109282]
[1765157763875,0.3564,91492.0,91491.0,0.1986871]
[1765157764081,0.3564,91492.0,91491.0,0.3709291]
[1765157764482,0.3564,91492.0,91491.0,0.0109291]
[1765157764671,0.3564,91484.0,91483.0,0.01109404]
[1765157764872,0.3564,91484.0,91483.0,0.00016394]
[1765157766278,0.3564,91484.0,91483.0,0.18086394]
[1765157766684,0.3564,91484.0,91483.0,0.00016394]
[1765157767383,0.0424481,91500.0,91488.0,0.0109294]
[1765157767581,0.3564,91489.0,91488.0,0.1916294]
[1765157767888,0.3564,91489.0,91488.0,0.0109294]
[1765157769385,0.0109288,91494.0,91484.0,0.0109299]
[1765157769583,0.3564,91484.0,91472.0,0.0109313]
[1765157769781,0.3564,91464.0,91463.0,0.0109323]
[1765157770180,0.3564,91480.0,91464.0,0.1018]
[1765157770380,0.3564,91471.0,91470.0,0.43709162]
[1765157770581,0.3564,91471.0,91464.0,0.1018]
[1765157770980,0.17914,91471.0,91470.0,0.3709316]
[1765157771288,0.3564,91471.0,91470.0,0.3709316]
[1765157773388,0.3564,91471.0,91461.0,0.25655556]
[1765157773389,0.36489,91462.0,91461.0,0.01109664]
[1765157773587,0.36489,91462.0,91461.0,0.00016394]
[1765157777093,0.02625,91476.0,91461.0,0.00016394]
[1765157777094,0.36489,91476.0,91475.0,0.3514609]
[1765157777391,0.00016394,91480.0,91479.0,0.3514605]
[1765157777986,0.36489,91496.0,91495.0,0.0109286]
[1765157778186,0.36489,91496.0,91476.0,0.10742]
[1765157778187,0.36489,91496.0,91486.0,0.25639162]
[1765157778498,0.36489,91481.0,91480.0,0.26732202]
[1765157778693,0.36489,91476.0,91475.0,0.0109309]
[1765157778995,0.36489,91476.0,91475.0,0.3514609]
[1765157779395,0.36489,91483.0,91482.0,0.0109301]
[1765157779898,0.36489,91483.0,91482.0,0.3514601]
[1765157781698,0.40189,91483.0,91482.0,0.3514601]
[1765157782084,0.40189,91483.0,91482.0,0.0109301]
[1765157782295,0.037,91483.0,91482.0,0.3514601]
[1765157782798,0.0259982,91483.0,91482.0,0.3514601]
[1765157783399,0.05877558,91522.0,91487.0,0.021859]
[1765157783598,0.31857315,91526.0,91525.0,0.34053]
[1765157783599,0.00027315,91526.0,91525.0,0.34053]
[1765157784298,0.18593,91522.0,91521.0,0.02178343]
[1765157784492,0.00027315,91526.0,91525.0,0.34053]
[1765157784696,0.36489,91522.0,91521.0,0.0109255]
[1765157785200,0.03727315,91526.0,91525.0,0.34053]
[1765157785388,0.36489,91522.0,91516.0,0.0109261]
[1765157785593,0.36489,91523.0,91522.0,0.0109253]
[1765157785803,0.03727315,91526.0,91525.0,0.34053]
[1765157785996,0.40216315,91526.0,91525.0,0.17774]
[1765157786198,0.18593,91523.0,91522.0,0.0109253]
[1765157786400,0.36489,91523.0,91522.0,0.0109253]
[1765157786796,0.00027315,91526.0,91522.0,0.1737153]
[1765157787003,0.00027315,91526.0,91525.0,0.17774]
[1765157787199,0.18620315,91526.0,91525.0,0.17774]
[1765157787400,0.36516315,91526.0,91522.0,0.0149253]
[1765157787600,0.18593,91523.0,91522.0,0.0149253]
[1765157787997,0.36489,91523.0,91522.0,0.0109253]
[1765157789008,0.03827315,91526.0,91525.0,0.34053]
[1765157789396,3e-08,91526.0,91525.0,0.77053]
[1765157789595,3e-08,91526.0,91525.0,1.17053]
[1765157789794,0.36489,91552.0,91551.0,0.0109219]
[1765157790305,0.36489,91547.0,91546.0,0.0109225]
[1765157790805,0.36489,91547.0,91533.0,0.10742]
[1765157790806,0.01108533,91556.0,91537.0,0.00016383]
[1765157791008,0.36489,91538.0,91537.0,0.00016383]
[1765157791796,0.038,91547.0,91537.0,0.34069383]
[1765157792096,0.038,91547.0,91537.0,0.25655545]
[1765157792500,0.36489,91538.0,91537.0,0.00016383]
[1765157793408,0.40289,91547.0,91546.0,0.0109225]
[1765157793810,0.36489,91542.0,91541.0,0.010923]
[1765157794310,0.36489,91538.0,91537.0,0.00316383]
[1765157795008,0.36489,91538.0,91537.0,0.00016383]
[1765157796507,0.40389,91538.0,91537.0,0.00316383]
[1765157796807,0.22493,91538.0,91537.0,0.34369383]
[1765157797007,0.039,91538.0,91537.0,0.34369383]
[1765157798605,0.039,91538.0,91537.0,0.00316383]
[1765157798606,0.40389,91538.0,91537.0,0.00316383]
[1765157798806,0.36489,91530.0,91529.0,0.0109245]
[1765157799001,0.039,91538.0,91534.0,0.0109239]
[1765157799204,0.039,91538.0,91537.0,0.34053]
[1765157799605,0.40389,91538.0,91537.0,0.34053]
[1765157799801,0.18593,91535.0,91534.0,0.0109239]
[1765157800115,0.36489,91541.0,91540.0,0.0109232]
[1765157801015,0.18609383,91547.0,91546.0,0.1886625]
[1765157801217,0.18609383,91547.0,91546.0,0.4588725]
[1765157801513,0.00016383,91547.0,91546.0,0.4588725]
[1765157801716,0.36489,91561.0,91560.0,0.1886608]
[1765157802418,0.31333303,91566.0,91565.0,0.1881203]
[1765157803013,0.31333303,91566.0,91565.0,0.0109203]
[1765157804010,0.34133303,91566.0,91565.0,0.0139203]
[1765157804818,0.34133303,91566.0,91565.0,0.003]
[1765157810429,0.31306,91558.0,91557.0,0.0109211]
[1765157810630,0.31306,91557.0,91556.0,0.00016383]
[1765157812424,0.30742162,91560.0,91538.0,0.0109234]
[1765157812630,0.31306,91535.0,91534.0,0.0109239]
[1765157812919,0.08096,91548.0,91520.0,0.28462]
[1765157812920,0.31306,91521.0,91520.0,0.28462]
[1765157813230,0.0109225,91547.0,91504.0,0.0109275]
[1765157813231,0.31306,91505.0,91504.0,0.0109275]
[1765157813431,0.31306,91501.0,91500.0,0.53961162]
[1765157813720,0.31306,91501.0,91500.0,0.294148]
[1765157813921,0.00016393,91510.0,91506.0,0.0109272]
[1765157814114,0.31306,91507.0,91506.0,0.0109272]
[1765157814719,0.31306,91507.0,91506.0,0.3432272]
[1765157815121,0.16195,91507.0,91506.0,0.3432272]
[1765157815309,0.00016393,91510.0,91506.0,0.0109272]
[1765157815518,0.00016393,91510.0,91509.0,0.3323]
[1765157815830,0.31306,91507.0,91506.0,0.0109272]
[1765157816129,0.33206,91507.0,91506.0,0.0129272]
[1765157816517,0.33206,91507.0,91506.0,0.1881272]
[1765157816518,0.31306,91507.0,91506.0,0.1881272]
[1765157816717,0.31306,91507.0,91506.0,0.3432272]
[1765157816917,0.31306,91502.0,91501.0,0.0109278]
[1765157817117,0.01916393,91510.0,91495.0,0.00016393]
[1765157817324,0.31306,91496.0,91495.0,0.00016393]
[1765157818323,0.022,91507.0,91495.0,0.00016393]
[1765157818630,0.31306,91496.0,91495.0,0.01109253]
[1765157818835,0.00016393,91510.0,91506.0,0.0109273]
[1765157819122,0.31306,91503.0,91502.0,0.0109278]
[1765157820428,0.02516393,91510.0,91497.0,0.0109283]
[1765157820625,0.02516393,91510.0,91495.0,0.00016393]
[1765157820626,0.31306,91496.0,91495.0,0.00016393]
[1765157822324,0.33606,91496.0,91495.0,0.00016393]
[1765157823628,0.3054996,91487.0,91470.0,0.0109315]
[1765157823931,0.29457,91474.0,91459.0,0.1412]
[1765157824123,0.29457,91460.0,91459.0,0.1412]
[1765157824528,0.29457,91460.0,91459.0,0.10652597]
[1765157824723,0.1015939,91451.0,91450.0,0.00016393]
[1765157825131,0.1015939,91451.0,91446.0,0.00027339]
[1765157825132,0.09066,91447.0,91446.0,0.00027339]
[1765157825430,0.09066,91434.0,91433.0,0.00237107]
[1765157825633,0.09076905,91434.0,91433.0,0.00237107]
[1765157826137,0.00010905,91434.0,91433.0,0.31027107]
[1765157826637,0.00010905,91434.0,91433.0,0.68027107]
[1765157826833,0.00016402,91443.0,91442.0,0.318835]
[1765157827132,0.024,91451.0,91450.0,0.318834]
[1765157827325,0.024,91451.0,91450.0,0.518834]
[1765157827528,0.024,91451.0,91450.0,0.668834]
[1765157827733,0.0109307,91478.0,91460.0,0.0109328]
[1765157827928,0.04533,91459.0,91458.0,0.0109329]
[1765157828130,0.00016402,91478.0,91468.0,0.0109318]
[1765157828332,0.04533,91469.0,91468.0,0.0109318]
[1765157828529,0.04533,91469.0,91463.0,0.0109324]
[1765157828735,0.04533,91469.0,91468.0,0.1558]
[1765157829041,0.04533,91463.0,91459.0,0.0109329]
[1765157829334,0.09066,91459.0,91458.0,0.003]
[1765157829528,0.02546,91476.0,91449.0,0.00016402]
[1765157829529,0.09066,91450.0,91449.0,0.00016402]
[1765157831238,0.09066,91434.0,91432.0,0.0109361]
[1765157831536,0.09066,91421.0,91410.0,0.25656108]
[1765157831736,0.09066,91421.0,91406.0,0.09421351]
[1765157831737,0.10788,91407.0,91406.0,0.01121271]
[1765157832330,0.0109366,91429.0,91411.0,0.0109386]
[1765157832331,0.10788,91412.0,91411.0,0.0109386]
[1765157833334,0.05394,91412.0,91411.0,0.1530086]
[1765157833534,0.00016402,91416.0,91411.0,0.1530086]
[1765157834140,0.00016402,91416.0,91415.0,0.29064]
[1765157834837,0.05394,91412.0,91411.0,0.0149386]
[1765157835037,0.00816402,91416.0,91411.0,0.1540086]
[1765157835343,0.10788,91412.0,91411.0,0.0149386]
[1765157835529,0.05394,91412.0,91411.0,0.1560086]
[1765157835737,0.05394,91412.0,91411.0,0.1530086]
[1765157836433,0.10788,91412.0,91411.0,0.0109386]
[1765157836929,0.03316402,91416.0,91415.0,0.0109382]
[1765157837141,0.15104402,91416.0,91415.0,0.0109382]
[1765157837837,0.14788,91412.0,91411.0,0.004]
[1765157838333,0.11488,91412.0,91411.0,0.001]
[1765157838533,0.05394,91411.0,91410.0,0.1005387]
[1765157839429,0.15104402,91416.0,91415.0,0.0109382]
[1765157840143,0.007,91412.0,91411.0,0.3025787]
[1765157840542,0.04,91412.0,91411.0,0.3055787]
[1765157840755,0.04,91412.0,91411.0,0.004]
[1765157840756,0.14788,91412.0,91411.0,0.004]
[1765157840933,0.11488,91412.0,91411.0,0.001]
[1765157841339,0.10788,91407.0,91406.0,0.00027351]
[1765157841937,0.10788,91405.0,91404.0,0.0109394]
[1765157842251,0.033,91412.0,91411.0,0.3015787]
[1765157842932,0.033,91412.0,91411.0,0.7015787]
[1765157843132,0.04,91412.0,91411.0,0.7025787]
[1765157843436,0.04,91412.0,91411.0,0.4325787]
[1765157843637,0.007,91412.0,91411.0,0.6925787]
[1765157843846,0.007,91412.0,91411.0,0.6325787]
[1765157844239,0.007,91412.0,91411.0,0.3025787]
[1765157844439,0.00016402,91416.0,91415.0,0.3015782]
[1765157844744,0.19910206,91450.0,91436.0,0.0109357]
[1765157845045,0.19910206,91450.0,91429.0,0.0896]
[1765157845046,0.0109341,91450.0,91439.0,0.0109352]
[1765157845349,0.12028,91454.0,91446.0,0.0109344]
[1765157846049,0.10788,91442.0,91441.0,0.00016402]
[1765157846634,0.12775,91442.0,91441.0,0.00016402]
[1765157846842,0.10788,91423.0,91422.0,0.0109373]
[1765157847550,0.10788,91423.0,91400.0,0.18816796]
[1765157847751,0.10788,91414.0,91413.0,0.0109383]
[1765157850143,0.12788,91414.0,91413.0,0.0119383]
[1765157850534,0.07394,91414.0,91413.0,0.1540083]
[1765157850736,0.014,91414.0,91413.0,0.3015783]
[1765157850941,0.07294,91414.0,91413.0,0.3025783]
[1765157851351,0.009,91414.0,91413.0,0.3725783]
[1765157851644,0.00016402,91422.0,91421.0,0.3015775]
[1765157853244,0.0109344,91448.0,91438.0,0.0109353]
[1765157853446,0.1182,91456.0,91438.0,0.18816796]
[1765157854043,0.10788,91440.0,91439.0,0.0109353]
[1765157854242,0.10788,91435.0,91434.0,0.1005358]
[1765157854644,0.05394,91435.0,91434.0,0.2426058]
[1765157854850,0.05394,91435.0,91434.0,0.3911758]
[1765157855341,0.01109822,91449.0,91441.0,0.010935]
[1765157855542,0.05410402,91449.0,91448.0,0.0896]
[1765157855745,0.10788,91442.0,91441.0,0.010935]
[1765157856452,0.00016402,91449.0,91437.0,0.0109355]
[1765157856453,0.10788,91438.0,91437.0,0.0109355]
[1765157856657,0.10788,91438.0,91437.0,0.1530055]
[1765157856952,0.008,91442.0,91441.0,0.1530051]
[1765157857348,0.004,91442.0,91441.0,0.3015751]
[1765157857541,0.0035074,91442.0,91441.0,0.3015751]
[1765157858150,0.0035074,91442.0,91441.0,0.6715751]
[1765157858450,0.0109323,91465.0,91441.0,0.6715751]
[1765157858451,0.05838881,91475.0,91448.0,0.0896]
[1765157858643,0.10788,91458.0,91457.0,0.0109331]
[1765157859151,0.0109302,91483.0,91452.0,0.0109337]
[1765157859152,0.10788,91453.0,91452.0,0.0109337]
[1765157859750,0.10788,91453.0,91452.0,0.1530037]
[1765157860845,0.10788,91453.0,91452.0,0.0109337]
[1765157861155,0.10788,91458.0,91457.0,0.1530032]
[1765157861351,0.00016402,91462.0,91461.0,0.3015727]
[1765157862553,0.00416402,91462.0,91461.0,0.3015727]
[1765157863158,0.00016402,91462.0,91461.0,0.3015727]
[1765157863357,0.00516402,91462.0,91461.0,0.3015727]
[1765157863554,0.05910402,91462.0,91461.0,0.3015727]
[1765157863849,0.3183,91492.0,91487.0,0.14688]
[1765157864157,0.0109288,91494.0,91487.0,0.14688]
[1765157864348,0.0109283,91498.0,91488.0,0.0109295]
[1765157865257,0.203,91504.0,91484.0,0.00016402]
[1765157865258,0.03574,91489.0,91484.0,0.00016402]
[1765157865444,0.03574,91489.0,91488.0,0.2861]
[1765157865649,0.03574,91486.0,91485.0,0.0109298]
[1765157866355,0.0466698,91485.0,91484.0,0.00016402]
[1765157866653,0.0466698,91485.0,91455.0,0.0896]
[1765157866654,0.03574,91469.0,91468.0,0.0109319]
[1765157866844,0.0109309,91476.0,91475.0,0.2861]
[1765157867158,0.03574,91471.0,91470.0,0.0109315]
[1765157867453,0.03574,91467.0,91466.0,0.010932]
[1765157868460,0.01787,91462.0,91461.0,0.0109326]
[1765157868651,0.03574,91458.0,91457.0,0.01109712]
[1765157869155,0.03574,91458.0,91457.0,0.15797712]
[1765157869750,0.03574,91458.0,91457.0,0.18597712]
[1765157869951,0.001,91462.0,91461.0,0.2970327]
[1765157870962,0.03574,91467.0,91466.0,0.010932]
[1765157871161,0.01109492,91476.0,91466.0,0.297032]
[1765157871361,0.00016402,91476.0,91475.0,0.2861]
[1765157871553,0.03574,91473.0,91472.0,0.0109313]
[1765157871750,0.0109319,91468.0,91461.0,0.0449327]
[1765157872062,0.01787,91462.0,91461.0,0.3050327]
[1765157872262,0.03574,91462.0,91461.0,0.1658127]
[1765157872450,0.03574,91462.0,91461.0,0.1578127]
[1765157874058,0.03574,91466.0,91465.0,0.0109321]
[1765157874556,0.03574,91462.0,91461.0,0.034]
[1765157875163,0.03574,91462.0,91461.0,0.026]
[1765157875462,0.01787,91459.0,91458.0,0.0109331]
[1765157875663,0.03574,91459.0,91458.0,0.0109331]
[1765157876158,0.03574,91459.0,91458.0,0.1578131]
[1765157876861,0.03574,91459.0,91458.0,0.2970331]
[1765157877661,0.03674,91459.0,91458.0,0.3330331]
[1765157879367,0.03674,91459.0,91458.0,0.3221]
[1765157879567,0.001,91459.0,91458.0,0.3221]
[1765157880471,0.00016402,91476.0,91475.0,0.272671]
[1765157880976,0.18816796,91510.0,91475.0,0.272671]
[1765157880977,0.05838881,91501.0,91500.0,0.26174]
[1765157881163,0.15064,91506.0,91505.0,0.26174]
[1765157881675,0.0885573,91511.0,91510.0,0.26174]
[1765157881862,0.8072861,91517.0,91510.0,0.2726668]
[1765157882566,0.79636,91517.0,91516.0,0.13261]
[1765157882758,0.00016392,91523.0,91522.0,0.26174]
[1765157883166,0.00016392,91523.0,91522.0,0.13261]
[1765157883473,0.0109261,91517.0,91508.0,0.010927]
[1765157883861,0.00016392,91523.0,91522.0,0.26174]
[1765157885471,0.05838881,91542.0,91541.0,0.26174]
[1765157885779,0.05838881,91542.0,91532.0,0.08146]
[1765157885780,0.05838881,91546.0,91545.0,0.26174]
[1765157885967,0.0109225,91546.0,91545.0,0.26174]
[1765157886564,0.0109235,91538.0,91537.0,0.13261]
[1765157887069,0.06931121,91548.0,91542.0,0.26174]
[1765157887373,0.06931121,91548.0,91547.0,0.26174]
[1765157887568,0.06931121,91548.0,91536.0,0.01108762]
[1765157887569,0.0109233,91540.0,91539.0,0.13261]
[1765157887971,0.0109227,91545.0,91539.0,0.26174]
[1765157888474,0.0109227,91545.0,91544.0,0.26174]
[1765157889272,0.0179227,91545.0,91544.0,0.26174]
[1765157889469,0.0109232,91541.0,91540.0,0.26174]
[1765157890474,0.0109232,91541.0,91539.0,0.001]
[1765157890671,0.0109236,91537.0,91536.0,0.00016392]
[1765157891479,0.0109236,91537.0,91536.0,0.34336392]
[1765157892076,0.007,91541.0,91540.0,0.26421]
[1765157892278,0.0109225,91546.0,91545.0,0.26624]
[1765157892773,0.51272,91547.0,91545.0,0.1316]
[1765157892963,0.51272,91547.0,91546.0,0.26624]
[1765157894460,0.51272,91547.0,91546.0,0.13464]
[1765157894666,0.51272,91547.0,91536.0,0.08162392]
[1765157894667,0.0109233,91540.0,91536.0,0.08162392]
[1765157894972,0.0109233,91540.0,91539.0,0.26624]
[1765157895773,0.52072,91547.0,91546.0,0.26624]
[1765157896075,0.0109233,91540.0,91539.0,0.13464]
[1765157896771,0.0179233,91540.0,91539.0,0.26624]
[1765157897177,0.007,91540.0,91539.0,0.26624]
[1765157897471,0.51272,91547.0,91546.0,0.26624]
[1765157898575,0.00016392,91555.0,91554.0,0.26624]